bitfinex/quotes_ETHUSD_20250413
["timestamp","ask_amount","ask_price","bid_price","bid_amount"]
[1744558342042,6.32486,1581.1,1580.6,2.6e-06]
[1744558342287,6.3254,1581.0,1580.6,2.6e-06]
[1744558342600,6.32551,1580.9,1580.7,10.59456257]
[1744558342902,6.32504,1581.1,1580.7,10.59456257]
[1744558343191,6.32451,1581.2,1580.7,10.59456257]
[1744558343891,3.0,1581.3,1580.7,16.92062257]
[1744558344190,9.32372,1581.4,1580.8,1.05945626]
[1744558344396,7.52337028,1581.0,1580.9,7.306]
[1744558344763,7.52337028,1581.0,1580.9,8.1319]
[1744558345096,7.52337028,1581.0,1580.9,9.68360463]
[1744558345396,7.52337028,1581.0,1580.9,9.13360463]
[1744558345553,7.52337028,1581.0,1580.9,9.68360463]
[1744558346394,7.52337028,1581.0,1580.9,7.5819]
[1744558346560,6.7513,1581.6,1580.6,7.5839]
[1744558346561,6.32552,1580.9,1580.6,7.5839]
[1744558346764,6.32589,1580.9,1580.6,7.5839]
[1744558347083,6.32729,1580.5,1580.2,6.758]
[1744558347283,6.32646,1580.7,1580.2,7.4388]
[1744558347477,6.32715,1580.5,1580.2,7.4388]
[1744558347788,6.32632,1580.7,1580.3,0.55]
[1744558347989,13.84929028,1580.8,1580.3,7.62152]
[1744558347990,7.52337028,1580.8,1580.3,7.62152]
[1744558348187,7.52337028,1580.8,1580.2,10.5512615]
[1744558348367,7.52337028,1580.8,1580.3,6.32767]
[1744558348564,7.52337028,1580.8,1580.5,6.32679]
[1744558348790,7.52337028,1580.8,1580.6,1.411879]
[1744558348995,7.52337028,1580.8,1580.6,14.498309]
[1744558349199,4.18582716,1580.8,1580.7,12.4387715]
[1744558349359,10.72502194,1581.3,1580.8,6.32591]
[1744558349360,4.18582716,1580.9,1580.8,6.32591]
[1744558349558,4.18582716,1580.9,1580.8,1.88279407]
[1744558349959,4.18582716,1580.9,1580.8,8.20870407]
[1744558350178,4.18582716,1580.9,1580.8,1.88279407]
[1744558350419,4.18582716,1580.9,1580.6,8.171879]
[1744558350621,4.18582716,1580.9,1580.6,7.5392]
[1744558350791,10.51157716,1580.9,1580.6,6.76]
[1744558350979,10.51157716,1580.9,1580.3,7.1071]
[1744558350980,6.32591,1580.8,1580.3,7.5402]
[1744558351505,10.51157716,1580.9,1580.1,0.05]
[1744558351506,6.32713,1580.5,1580.1,0.05]
[1744558351691,6.32688,1580.6,1580.1,0.05]
[1744558351894,6.32688,1580.6,1580.1,0.80902]
[1744558352106,6.3273,1580.5,1580.1,0.80902]
[1744558352310,6.3273,1580.5,1580.0,5.52584421]
[1744558352514,6.32809,1580.3,1580.0,5.52584421]
[1744558353083,12.65639,1580.3,1580.0,5.52584421]
[1744558353478,12.65491,1580.5,1580.0,5.52584421]
[1744558353679,3.0,1580.4,1580.0,5.52584421]
[1744558353920,9.3277,1580.4,1580.0,5.52584421]
[1744558354280,6.32815,1580.3,1580.0,5.52584421]
[1744558354484,12.65642,1580.3,1580.0,5.52584421]
[1744558355820,6.32752,1580.4,1579.9,53.30689698]
[1744558356123,12.65542,1580.4,1579.9,59.45185658]
[1744558356717,6.328,1580.3,1579.9,59.45185658]
[1744558357614,6.32887,1580.1,1579.8,6.763]
[1744558357819,5.96,1580.5,1579.9,6.32945]
[1744558358016,6.32752,1580.4,1579.8,13.09266]
[1744558358221,6.32815,1580.3,1579.8,7.23210584]
[1744558358621,6.32847,1580.2,1579.8,7.23210584]
[1744558358831,6.32847,1580.2,1579.8,8.58834642]
[1744558359134,12.65559,1580.4,1579.8,10.47822263]
[1744558359337,6.32792,1580.3,1579.8,10.47822263]
[1744558360318,6.32831,1580.2,1579.8,4.14857263]
[1744558360632,6.32779,1580.4,1579.6,0.8313]
[1744558360831,6.32851,1580.2,1579.7,6.33009]
[1744558361132,12.65714,1580.2,1579.7,6.33009]
[1744558361298,12.65714,1580.2,1579.7,7.046229]
[1744558361701,12.65714,1580.2,1579.7,13.376329]
[1744558361702,6.32851,1580.2,1579.7,13.376329]
[1744558362004,12.65648,1580.3,1579.8,6.3299]
[1744558362409,12.28712,1580.5,1579.9,6.32941]
[1744558362611,3.0,1580.4,1580.0,6.32895]
[1744558362792,5.96,1580.5,1580.0,8.372726]
[1744558362992,10.14582716,1580.5,1580.0,2.043836]
[1744558363197,10.14582716,1580.5,1580.0,1.96482973]
[1744558363506,10.14582716,1580.5,1580.1,6.32871]
[1744558363711,10.14582716,1580.5,1580.3,6.32775]
[1744558364033,16.47135716,1580.9,1580.4,12.65481]
[1744558364235,16.47135716,1580.9,1580.6,6.32666]
[1744558364236,10.14582716,1580.9,1580.6,6.32666]
[1744558364394,16.47134716,1580.9,1580.5,6.32699]
[1744558364594,16.47134716,1580.9,1580.4,6.32715]
[1744558364896,16.47134716,1580.9,1580.4,13.963725]
[1744558365299,10.14582716,1580.9,1580.4,1.309315]
[1744558365522,6.32613,1580.8,1580.3,13.09382]
[1744558365837,6.32613,1580.8,1580.4,6.32733]
[1744558366731,5.96,1580.9,1580.5,6.32695]
[1744558366932,12.28552,1580.9,1580.5,6.32695]
[1744558367146,12.28552,1580.9,1580.4,6.32733]
[1744558367147,6.32593,1580.8,1580.4,6.32733]
[1744558367299,6.32593,1580.8,1580.4,8.347248]
[1744558367499,6.32593,1580.8,1580.4,8.347218]
[1744558367726,5.96,1580.9,1580.5,6.32678]
[1744558367902,5.96,1580.9,1580.6,6.32671]
[1744558368230,5.96,1580.9,1580.5,12.65412]
[1744558368441,5.96,1580.9,1580.5,7.7943238]
[1744558368807,5.96,1580.9,1580.7,6.32626]
[1744558369009,0.58506842,1580.8,1580.7,0.778]
[1744558369540,0.58506842,1580.8,1580.7,7.10431]
[1744558369741,0.58506842,1580.8,1580.7,13.87031]
[1744558369924,0.03656677,1580.8,1580.7,11.785685]
[1744558370099,0.03656677,1580.8,1580.7,18.111995]
[1744558370302,0.03656677,1580.8,1580.7,18.661995]
[1744558370495,4.18582716,1581.4,1581.2,6.32421]
[1744558371733,4.18582716,1581.4,1580.9,6.32522]
[1744558371941,6.32329,1581.5,1581.1,6.32469]
[1744558372753,6.32329,1581.5,1581.1,6.32442]
[1744558372952,7.11634,1581.6,1581.1,12.64884]
[1744558373110,7.11634,1581.6,1581.1,6.32442]
[1744558373647,6.32326,1581.5,1581.1,6.32442]
[1744558376063,6.32326,1581.5,1581.1,6.32469]
[1744558376964,12.64661,1581.5,1581.1,6.32469]
[1744558377256,6.32326,1581.5,1581.1,6.32469]
[1744558377662,7.11635,1581.6,1581.0,0.7773]
[1744558377863,7.11635,1581.6,1581.2,6.32406]
[1744558378049,3.7936,1581.6,1581.3,6.32386]
[1744558379357,0.7936,1581.6,1581.4,6.3233]
[1744558379558,13.06891,1581.8,1581.4,6.3233]
[1744558379727,13.06891,1581.8,1581.3,6.3239]
[1744558380059,6.32252,1581.7,1581.3,12.64759]
[1744558380268,6.747,1581.8,1581.2,6.324]
[1744558380429,6.747,1581.8,1581.5,12.64584]
[1744558381065,13.06892,1581.8,1581.4,6.32345]
[1744558381555,13.06892,1581.8,1581.4,12.64676]
[1744558381754,6.747,1581.8,1581.5,6.32303]
[1744558381943,13.06895,1581.8,1581.3,6.32383]
[1744558382144,6.32296,1581.6,1581.2,6.3241]
[1744558382346,6.32296,1581.6,1581.2,12.64821]
[1744558382545,6.32236,1581.7,1581.3,6.32386]
[1744558382750,6.32236,1581.7,1581.3,12.64761]
[1744558383128,6.747,1581.8,1581.5,6.32307]
[1744558385072,17.67252716,1582.1,1581.7,6.32204]
[1744558385274,17.67252716,1582.1,1581.8,12.64347]
[1744558385585,4.98952716,1582.1,1581.8,12.64347]
[1744558385747,4.98952716,1582.1,1581.8,6.32171]
[1744558386680,4.98952716,1582.1,1581.5,13.52135767]
[1744558386840,6.32111,1582.0,1581.5,7.19838767]
[1744558387041,4.98952716,1582.1,1581.8,6.32165]
[1744558387274,0.8037,1582.1,1581.8,6.32165]
[1744558387436,11.80071004,1582.2,1581.8,6.32165]
[1744558387664,18.12133004,1582.2,1581.8,6.32165]
[1744558387867,5.48016004,1582.2,1581.9,6.3214]
[1744558388090,5.48016004,1582.2,1581.9,12.64278]
[1744558388304,5.48016004,1582.2,1582.0,6.321]
[1744558389301,5.48016004,1582.2,1581.9,6.32146]
[1744558389302,11.80051004,1582.2,1581.9,6.32146]
[1744558389505,11.80051004,1582.2,1581.8,12.6438]
[1744558389800,5.48016004,1582.2,1581.9,6.32128]
[1744558390002,5.48016004,1582.2,1582.0,6.32104]
[1744558390904,6.10854604,1582.2,1581.9,12.64256]
[1744558391076,4.22016386,1582.0,1581.9,6.32128]
[1744558392270,4.22016386,1582.0,1581.9,6.79080926]
[1744558393114,4.22016386,1582.0,1581.9,13.51080926]
[1744558393410,4.22016386,1582.0,1581.9,14.34330926]
[1744558393704,3.34645804,1582.0,1581.9,20.35290006]
[1744558393889,0.83661451,1582.0,1581.9,20.90290006]
[1744558394098,0.14461011,1582.0,1581.9,20.90290006]
[1744558394397,0.05,1582.4,1582.1,3.0]
[1744558394578,0.05,1582.4,1582.3,6.31991]
[1744558394783,0.05,1582.4,1582.3,7.15241]
[1744558395015,0.05,1582.4,1582.3,9.13799824]
[1744558395186,0.05,1582.4,1582.3,9.20118503]
[1744558395803,0.05,1582.4,1582.3,15.92118503]
[1744558396126,0.05,1582.4,1582.3,15.85799824]
[1744558398103,0.05,1582.4,1582.3,16.32534434]
[1744558399915,0.05,1582.4,1582.3,16.5072561]
[1744558400239,0.05,1582.4,1582.3,6.72]
[1744558400543,0.05,1582.4,1582.1,7.14672]
[1744558400544,0.05,1582.4,1582.1,7.14691]
[1744558400837,6.36956,1582.4,1582.1,6.32065]
[1744558401035,0.8124,1582.3,1582.1,6.32065]
[1744558401219,0.8124,1582.3,1582.1,12.64117]
[1744558401737,7.13268,1582.3,1582.0,6.718]
[1744558401895,0.713268,1582.2,1581.7,6.32226]
[1744558402100,6.32138,1582.0,1581.6,74.05820235]
[1744558402421,6.32138,1582.0,1581.6,61.01863235]
[1744558403206,6.32138,1582.0,1581.7,6.32227]
[1744558403413,6.32075,1582.1,1581.7,6.32227]
[1744558404038,12.64176,1582.1,1581.7,6.32227]
[1744558404237,7.09079,1581.9,1581.6,54.224]
[1744558404613,0.7691,1581.9,1581.6,60.5467]
[1744558404942,0.7691,1581.9,1581.6,6.3227]
[1744558405638,0.7691,1581.9,1581.6,6.32252]
[1744558405802,1.478126,1581.9,1581.6,6.32252]
[1744558407004,0.7691,1581.9,1581.6,12.64504]
[1744558409345,0.7691,1581.9,1581.6,12.70826044]
[1744558409502,0.7691,1581.9,1581.6,12.64504]
[1744558410343,0.7691,1581.9,1581.6,6.32252]
[1744558410703,7.0907,1581.9,1581.6,6.32252]
[1744558411204,12.64433,1581.8,1581.5,6.662]
[1744558411417,12.64433,1581.8,1581.4,9.32313]
[1744558411733,0.7691,1581.9,1581.4,3.0]
[1744558411937,0.7691,1581.9,1581.6,6.32253]
[1744558412235,0.7691,1581.9,1581.5,6.32304]
[1744558412425,6.32215,1581.8,1581.4,9.32345]
[1744558412821,6.32215,1581.8,1581.4,15.64681]
[1744558413030,0.7691,1581.9,1581.5,0.06322959]
[1744558413231,0.7691,1581.9,1581.6,6.32253]
[1744558413538,7.09066,1581.9,1581.4,9.32344]
[1744558413717,6.3221,1581.8,1581.4,15.64688]
[1744558413916,6.3221,1581.8,1581.5,6.32304]
[1744558414338,6.3221,1581.8,1581.4,6.32344]
[1744558414339,0.8122,1581.7,1581.4,6.32344]
[1744558414509,0.8122,1581.3,1581.0,6.65449579]
[1744558414848,7.13612,1581.3,1581.0,6.65449579]
[1744558415012,6.32471,1581.1,1581.0,0.32939579]
[1744558415205,10.769381,1581.1,1581.0,0.32939579]
[1744558415532,10.769381,1581.1,1580.1,6.32855]
[1744558415533,0.8122,1580.7,1579.9,16.41351852]
[1744558415740,0.8122,1580.7,1580.4,12.65474]
[1744558416048,0.8122,1580.7,1580.4,12.65453]
[1744558416349,0.8122,1580.7,1580.5,6.32706]
[1744558416505,0.8122,1580.7,1580.5,12.65392]
[1744558416830,0.8122,1580.7,1580.5,6.32686]
[1744558417040,0.8122,1580.7,1580.4,6.32747]
[1744558417342,7.1386,1580.7,1580.3,12.99169]
[1744558418973,0.8122,1580.7,1580.3,6.32766]
[1744558419108,6.32674,1580.6,1580.2,6.3281]
[1744558419309,7.13867,1580.7,1580.3,6.32789]
[1744558420025,7.13867,1580.7,1580.3,6.32789]
[1744558420347,6.32719,1580.5,1580.0,12.99288]
[1744558420553,7.13862,1580.7,1580.2,6.32809]
[1744558420723,13.46528,1580.7,1580.3,6.32787]
[1744558420920,6.32689,1580.6,1580.2,6.32809]
[1744558421126,6.32729,1580.5,1580.1,6.32868]
[1744558421327,6.32729,1580.5,1580.1,12.6572]
[1744558421646,6.32729,1580.5,1580.2,6.32827]
[1744558422125,6.32729,1580.5,1580.0,12.99506]
[1744558422323,7.0941,1580.4,1580.0,12.99506]
[1744558422526,6.32818,1580.3,1580.0,6.666]
[1744558422727,12.65641,1580.3,1579.9,6.32922]
[1744558423112,0.7664,1580.4,1580.0,0.06328837]
[1744558423437,0.7664,1580.4,1580.2,6.3283]
[1744558423612,0.7664,1580.4,1580.3,6.32791]
[1744558423808,0.7693,1580.6,1580.3,6.32791]
[1744558424325,0.7693,1580.6,1580.3,12.65563]
[1744558424926,0.7693,1580.6,1580.4,6.32739]
[1744558425279,7.09606,1580.6,1580.2,12.99514]
[1744558425643,7.09606,1580.6,1580.2,19.3233]
[1744558426173,0.7693,1580.6,1580.3,6.32775]
[1744558426542,7.09601,1580.6,1580.2,12.99514]
[1744558426747,7.09601,1580.6,1580.2,19.32323]
[1744558427566,7.09601,1580.6,1580.3,6.32785]
[1744558427967,0.7693,1580.6,1580.2,6.667]
[1744558428139,6.32726,1580.5,1580.2,6.667]
[1744558428344,6.32726,1580.5,1580.2,6.3283]
[1744558429178,7.09605,1580.6,1580.2,6.3283]
[1744558429354,7.09605,1580.6,1580.2,12.65642]
[1744558429557,0.7693,1580.6,1580.3,6.32776]
[1744558429755,0.7693,1580.6,1580.3,12.65552]
[1744558429958,0.7693,1580.6,1580.4,6.32743]
[1744558431092,0.7693,1580.6,1580.3,6.32776]
[1744558431290,7.09608,1580.6,1580.3,6.32776]
[1744558431463,7.805644,1580.6,1580.3,6.32776]
[1744558433788,6.32712,1580.5,1580.2,6.3283]
[1744558434188,6.32757,1580.4,1580.1,6.32859]
[1744558434356,0.8022,1580.3,1580.1,6.32859]
[1744558434756,0.8022,1580.3,1580.0,6.32897]
[1744558434990,0.8022,1580.3,1580.0,12.65794]
[1744558435995,0.8022,1580.3,1580.0,6.32897]
[1744558436298,0.8022,1580.3,1580.0,12.65789]
[1744558436530,6.32854,1580.2,1579.8,23.0897]
[1744558436809,14.171177,1580.3,1579.9,6.3293]
[1744558436957,7.843127,1580.3,1579.9,12.65867]
[1744558437157,14.171317,1580.3,1579.9,6.3293]
[1744558437600,14.171317,1580.3,1579.9,12.65862]
[1744558437900,14.171317,1580.3,1579.9,6.3293]
[1744558438200,6.32835,1580.2,1579.9,6.3293]
[1744558439298,12.65689,1580.2,1579.8,6.32987]
[1744558439663,6.32835,1580.2,1579.8,6.32971]
[1744558439997,6.32915,1580.0,1579.6,6.33046]
[1744558440199,0.8041,1580.1,1579.4,10.54875376]
[1744558440498,0.8041,1580.1,1579.3,10.0425059]
[1744558440499,0.8041,1580.4,1580.2,6.32825]
[1744558440700,0.8041,1580.6,1580.3,12.65567]
[1744558440998,7.1309,1580.6,1580.2,12.65648]
[1744558441196,0.8041,1580.6,1580.2,0.7785]
[1744558441398,0.8041,1580.6,1580.4,6.32737]
[1744558441758,0.8041,1580.6,1580.1,6.32856]
[1744558441958,6.32736,1580.5,1580.1,12.65707]
[1744558442385,6.32736,1580.5,1580.1,12.65706]
[1744558442695,6.32736,1580.5,1580.1,6.32851]
[1744558443058,6.32766,1580.4,1580.0,13.43651]
[1744558443283,6.32736,1580.5,1580.1,12.65725]
[1744558443560,7.108147,1580.5,1580.2,6.32829]
[1744558443759,7.108147,1580.5,1580.1,12.65713]
[1744558444098,7.108147,1580.5,1580.0,7.10758]
[1744558444269,0.7659,1580.4,1579.8,6.32977]
[1744558444469,6.32876,1580.1,1579.8,6.32977]
[1744558444674,0.7659,1580.0,1579.7,12.97224]
[1744558444869,7.09383,1580.3,1579.9,6.32951]
[1744558445070,7.09383,1580.3,1579.9,12.65886]
[1744558445281,0.7659,1580.3,1579.8,6.32987]
[1744558445593,12.65699,1580.2,1579.8,6.3297]
[1744558445757,13.4500453,1580.1,1579.7,6.3303]
[1744558445959,6.32914,1580.0,1579.7,6.3303]
[1744558446161,6.32889,1580.1,1579.8,3.0]
[1744558446460,6.32889,1580.1,1579.8,9.32977]
[1744558446690,0.7659,1580.3,1579.8,9.32977]
[1744558446996,0.7659,1580.3,1579.7,3.0]
[1744558447194,7.09396,1580.3,1579.7,3.0]
[1744558447498,0.7659,1580.1,1579.7,6.33028]
[1744558447701,0.7659,1580.1,1579.8,3.0]
[1744558448073,0.7659,1580.1,1579.8,9.32988]
[1744558448275,0.7659,1580.1,1579.8,3.0]
[1744558449604,0.7659,1580.1,1579.6,3.0]
[1744558450261,3.0,1580.0,1579.5,6.33098]
[1744558450462,3.37659,1580.0,1579.6,3.0]
[1744558450906,3.37659,1580.0,1579.6,9.3307]
[1744558451883,3.0,1580.0,1579.8,3.0]
[1744558452085,3.0,1580.0,1579.9,9.32951]
[1744558452473,0.754,1580.3,1580.0,6.32889]
[1744558452972,0.754,1580.3,1580.0,12.6578]
[1744558453603,0.754,1580.3,1580.0,12.65785]
[1744558453812,0.754,1580.3,1580.0,6.32889]
[1744558454420,0.754,1580.3,1580.0,3.0]
[1744558454582,0.754,1580.3,1580.1,6.32841]
[1744558454909,6.7777,1580.5,1580.2,3.0]
[1744558455114,0.8177,1580.5,1580.3,6.32789]
[1744558455317,0.8177,1580.5,1580.4,3.0]
[1744558455611,0.8177,1580.5,1580.3,3.0]
[1744558455974,0.8177,1580.5,1580.3,9.3279]
[1744558456397,5.96,1580.8,1580.4,6.32722]
[1744558456398,0.8177,1580.7,1580.4,6.32722]
[1744558456610,0.8177,1580.7,1580.5,6.32709]
[1744558456811,0.8177,1580.7,1580.4,12.65473]
[1744558457525,0.8177,1580.7,1580.4,6.32722]
[1744558458807,0.8177,1580.7,1580.3,9.32784]
[1744558459010,1.49547,1580.7,1580.3,9.32784]
[1744558459724,1.49547,1580.7,1580.4,6.32751]
[1744558459925,1.49547,1580.7,1580.4,6.32739]
[1744558460127,3.0,1580.6,1580.5,6.32689]
[1744558460312,3.0,1580.6,1580.3,9.32789]
[1744558461129,3.0,1580.6,1580.3,15.65561]
[1744558462125,3.0,1580.6,1580.3,9.32772]
[1744558462398,3.0,1580.6,1580.3,15.65547]
[1744558462595,3.0,1580.6,1580.5,6.32711]
[1744558463129,3.0,1580.6,1580.5,9.44767798]
[1744558463340,0.7603,1580.9,1580.6,6.3265]
[1744558463508,0.7603,1580.9,1580.6,12.653]
[1744558464134,7.3942,1581.1,1580.8,6.32563]
[1744558464325,7.3942,1581.1,1580.7,3.12056798]
[1744558464627,0.7522,1581.1,1580.7,9.44667798]
[1744558464830,0.7522,1581.1,1580.7,15.77278798]
[1744558465034,0.7522,1581.1,1580.8,6.3259]
[1744558465196,3.0,1581.0,1580.9,6.32551]
[1744558465394,3.0,1581.0,1580.9,10.71121898]
[1744558465911,5.48016004,1581.2,1581.1,6.32471]
[1744558466326,6.7122,1581.3,1581.1,6.32471]
[1744558466939,6.7122,1581.3,1580.9,10.71113898]
[1744558467117,6.7122,1581.3,1580.9,7.590571]
[1744558467647,6.7122,1581.3,1580.9,1.265141]
[1744558467842,6.7122,1581.3,1581.0,6.32472]
[1744558468022,6.7122,1581.3,1581.0,12.64951]
[1744558468445,6.7122,1581.3,1580.9,6.32538]
[1744558468648,6.7122,1581.3,1581.0,6.32498]
[1744558469358,0.7522,1581.3,1580.9,6.32538]
[1744558469719,0.7522,1581.3,1581.0,6.32485]
[1744558470657,3.0,1581.2,1580.9,6.32537]
[1744558470861,3.0,1581.2,1581.0,6.32473]
[1744558474468,3.0,1581.2,1580.9,7.93874899]
[1744558475265,3.0,1581.2,1580.9,7.93862899]
[1744558475426,3.0,1581.2,1581.0,6.32507]
[1744558475761,3.0,1581.2,1580.9,7.93862899]
[1744558476057,3.0,1581.2,1580.9,6.32531]
[1744558477269,3.0,1581.2,1580.8,3.48193989]
[1744558477472,3.0,1581.2,1581.1,6.32471]
[1744558477966,0.7841,1581.5,1581.2,6.32399]
[1744558478154,0.7841,1581.5,1581.2,12.64806]
[1744558478965,0.7841,1581.5,1581.3,6.3239]
[1744558479167,5.96,1581.6,1581.4,6.32338]
[1744558479469,0.8213,1581.7,1581.4,12.6467]
[1744558479877,0.8213,1581.7,1581.5,6.32292]
[1744558480164,3.0,1581.6,1581.5,6.32292]
[1744558480570,3.0,1581.6,1581.4,12.64696]
[1744558482295,3.0,1581.6,1581.5,6.32311]
[1744558485294,0.8297,1581.9,1581.5,13.910879]
[1744558485481,0.8297,1581.9,1581.6,6.32269]
[1744558486400,0.8297,1581.9,1581.6,12.6452]
[1744558489007,0.8297,1581.9,1581.4,15.76340702]
[1744558489214,0.8297,1581.9,1581.5,6.32286]
[1744558489416,0.8297,1581.9,1581.5,12.6459]
[1744558489621,0.8297,1581.9,1581.6,6.32264]
[1744558490604,0.8297,1581.9,1581.6,12.64516]
[1744558493926,1.50867,1581.9,1581.3,7.1326]
[1744558494128,1.50867,1581.9,1581.0,3.90463702]
[1744558494129,0.8018,1581.7,1581.0,3.90463702]
[1744558494341,0.8018,1581.7,1580.7,60.56796]
[1744558494342,6.32321,1581.5,1580.9,6.32536]
[1744558494550,1.434121,1581.4,1580.9,6.32536]
[1744558494712,8.037121,1581.4,1580.9,6.32536]
[1744558495045,0.8018,1581.3,1580.7,3.90463702]
[1744558495241,0.8018,1581.3,1580.7,3.11683702]
[1744558495444,0.8018,1581.2,1580.7,3.11683702]
[1744558495816,0.8018,1581.2,1580.7,9.44292702]
[1744558496024,0.8018,1581.2,1580.9,6.32528]
[1744558496735,0.8018,1581.2,1580.7,9.44307702]
[1744558496932,0.8018,1581.2,1580.7,15.76920702]
[1744558497232,0.8018,1581.2,1580.8,6.32582]
[1744558497566,0.8018,1581.2,1580.8,12.65157]
[1744558499366,0.8018,1581.2,1580.8,6.32575]
[1744558499530,0.8018,1581.2,1580.6,3.11683702]
[1744558499863,0.8018,1581.2,1580.7,6.32631]
[1744558500033,1.3158652,1581.2,1580.8,6.32586]
[1744558500733,1.3158652,1581.2,1580.7,6.32631]
[1744558501068,0.7972,1580.9,1580.3,8.557367]
[1744558501276,0.7972,1580.7,1580.1,6.32839]
[1744558501428,0.7972,1580.7,1580.1,13.6014327]
[1744558501850,0.7972,1580.7,1580.2,3.18011876]
[1744558502083,0.7972,1580.7,1580.5,6.32687]
[1744558502467,0.7972,1580.7,1580.5,12.65382]
[1744558502783,0.7972,1580.9,1580.7,6.32617]
[1744558502986,0.7972,1580.9,1580.7,6.32614]
[1744558503162,7.4319,1581.3,1580.9,6.32545]
[1744558504511,7.4319,1581.3,1580.9,6.32537]
[1744558504800,7.4319,1581.3,1580.9,12.65082]
[1744558505003,7.4319,1581.3,1581.0,6.32486]
[1744558505600,0.8269,1581.3,1581.0,6.32486]
[1744558505800,0.8269,1581.3,1580.9,14.2277457]
[1744558506107,0.8269,1581.3,1580.8,6.3259]
[1744558506801,6.32436,1581.2,1580.6,17.31387902]
[1744558507014,0.7545,1581.1,1580.4,9.44414702]
[1744558507162,0.7545,1581.1,1580.2,9.44474702]
[1744558507163,0.7545,1580.7,1580.2,9.44474702]
[1744558507363,1.462554,1580.7,1580.3,6.32784]
[1744558507591,0.7545,1580.7,1580.5,12.65399]
[1744558508007,0.7545,1580.7,1580.6,6.32671]
[1744558508192,0.7948,1580.9,1580.6,12.65342]
[1744558508870,0.7948,1580.9,1580.6,6.32671]
[1744558510908,6.7548,1581.1,1580.8,6.32591]
[1744558511067,3.7948,1581.1,1580.8,12.65165]
[1744558511268,0.7948,1581.1,1581.0,6.32511]
[1744558511471,6.44585761,1581.4,1581.0,6.32511]
[1744558511472,0.7948,1581.3,1581.0,6.32511]
[1744558511912,0.7948,1581.3,1581.0,12.65007]
[1744558512488,1.47028,1581.3,1580.8,6.32584]
[1744558512814,1.47028,1581.3,1580.8,6.32558]
[1744558513485,0.7948,1581.3,1581.0,6.32494]
[1744558514108,0.7948,1581.3,1580.9,6.32548]
[1744558516828,0.7948,1581.3,1581.0,6.32494]
[1744558517035,5.96,1581.4,1581.1,3.88823702]
[1744558517340,5.96,1581.4,1581.1,9.83031072]
[1744558517544,6.7558,1581.4,1581.1,6.32465]
[1744558518546,6.7558,1581.4,1581.0,12.64996]
[1744558518706,6.7558,1581.4,1581.1,6.3247]
[1744558519448,6.7558,1581.4,1581.1,12.64927]
[1744558519647,6.7558,1581.4,1580.9,10.21358702]
[1744558519838,6.7558,1581.4,1581.2,6.32391]
[1744558520024,0.7958,1581.4,1581.2,6.32391]
[1744558520224,0.7958,1581.4,1581.3,6.32391]
[1744558520419,3.8289,1581.6,1581.3,6.32391]
[1744558521156,3.8289,1581.6,1581.1,9.44147702]
[1744558521325,0.38289,1581.5,1581.1,9.44147702]
[1744558521522,6.70614,1581.5,1580.9,10.21361702]
[1744558521827,0.8289,1581.3,1580.8,12.65149]
[1744558522357,0.8289,1581.3,1580.8,6.32588]
[1744558522513,0.8289,1581.3,1580.9,6.32547]
[1744558523014,0.8289,1581.3,1580.9,12.65083]
[1744558523853,0.8289,1581.3,1581.0,6.32503]
[1744558524649,0.8289,1581.3,1581.0,1.265039]
[1744558524852,0.7835,1581.5,1581.3,6.32372]
[1744558525438,0.7835,1581.5,1581.2,6.3243]
[1744558525828,0.7835,1581.5,1581.2,6.3241]
[1744558526053,0.7835,1581.5,1581.3,6.32386]
[1744558526864,0.7835,1581.5,1581.3,12.64756]
[1744558527152,0.7835,1581.5,1581.3,6.3237]
[1744558528954,5.8089,1581.7,1581.4,6.32336]
[1744558530258,5.8089,1581.7,1581.3,6.3237]
[1744558531454,5.8089,1581.7,1581.4,6.32334]
[1744558531841,5.8089,1581.7,1581.5,0.42344159]
[1744558533370,5.8089,1581.7,1581.3,6.3237]
[1744558533570,0.811,1581.5,1581.4,0.43001577]
[1744558533747,1.1921,1581.5,1580.9,6.32535]
[1744558534083,13.83859,1581.5,1581.0,0.43001577]
[1744558534286,7.51521,1581.5,1581.0,6.75507577]
[1744558534649,1.1921,1581.5,1581.0,13.08002577]
[1744558534865,1.1921,1581.5,1581.1,6.32454]
[1744558535283,1.1921,1581.5,1581.2,0.43130544]
[1744558535651,1.1921,1581.5,1581.0,6.32495]
[1744558535873,1.1921,1581.5,1581.3,0.43130544]
[1744558536047,1.1921,1581.5,1581.0,6.32495]
[1744558536247,1.1921,1581.5,1581.4,0.43130544]
[1744558536462,1.1921,1581.5,1581.0,6.32495]
[1744558536647,1.1921,1581.5,1581.4,0.43130544]
[1744558536845,1.1921,1581.5,1581.0,6.32495]
[1744558537047,1.1921,1581.5,1581.4,0.43182136]
[1744558537279,1.1921,1581.5,1581.0,6.32495]
[1744558537471,1.1921,1581.5,1581.4,0.43182136]
[1744558538120,1.1921,1581.5,1581.0,12.64986]
[1744558538271,1.1921,1581.5,1581.4,0.43182136]
[1744558538477,1.1921,1581.5,1581.0,12.64986]
[1744558538690,1.1921,1581.5,1581.4,0.43182136]
[1744558538864,1.1921,1581.5,1581.0,6.32491]
[1744558539209,7.51523,1581.5,1581.0,6.32491]
[1744558539364,0.751523,1581.4,1581.1,0.43182136]
[1744558539695,7.13411,1581.5,1581.1,0.43182136]
[1744558540007,10.52021919,1581.5,1581.1,0.43182136]
[1744558540292,4.19710919,1581.5,1581.1,0.43182136]
[1744558540473,4.19710919,1581.5,1581.1,6.75638136]
[1744558542624,3.38610919,1581.4,1581.1,6.75638136]